fUST/lending_fUST_20250927
["ID","MTS","AMOUNT","RATE_DAILY","PERIOD"]
[387850505,1758929257074,-500.0,0.00031844,5]
[387850506,1758929257098,-184.82473078,0.00032,120]
[387850507,1758929257119,-169.62692056,0.00032,120]
[387850508,1758929257139,-213.22406978,0.00032,120]
[387850509,1758929257161,-183.28330124,0.00032,120]
[387850510,1758929257181,-214.60596598,0.00032,120]
[387850511,1758929257203,-184.82473078,0.000323,120]
[387850512,1758929257225,-213.22406978,0.000323,120]
[387850513,1758929257246,-1365.53410622,0.00032332,2]
[387850514,1758929257267,-184.82473078,0.000326,120]
[387850515,1758929257288,-233.71402077,0.00032615,2]
[387850516,1758929257309,-417.15472785,0.00032615,2]
[387850517,1758929257330,-160.0,0.00032615,2]
[387850518,1758929257349,-160.0,0.00032615,2]
[387850519,1758929257369,-160.0,0.00032615,2]
[387850520,1758929257389,-160.0,0.00032615,2]
[387850521,1758929257409,-786.058661,0.00032877,2]
[387850522,1758929257428,-803.24774202,0.000329,2]
[387850523,1758929257449,-1000.0,0.00033146,2]
[387850524,1758929257470,-1000.0,0.00033146,2]
[387850525,1758929257491,-1000.0,0.00033146,2]
[387850526,1758929257512,-1000.0,0.00033146,2]
[387850527,1758929257535,-1000.0,0.00033146,2]
[387850528,1758929257557,-227.55472717,0.00033146,2]
[387850529,1758929257578,-1000.0,0.00033146,2]
[387850530,1758929257598,-523.90995544,0.00033146,2]
[387850531,1758929257619,-211.83,0.000332,2]
[387850532,1758929257640,-295.22,0.00033315,3]
[387850533,1758929257661,-250.0,0.00033692,2]
[387850534,1758929257684,-168.0,0.00033815,2]
[387850535,1758929257706,-885.68,0.00033963,3]
[387850536,1758929257727,-299.07194868,0.00033973,2]
[387850537,1758929257747,-151.0,0.00033973,2]
[387850538,1758929257767,-246.33756732,0.00033973,2]
[387850539,1758929257788,-151.0,0.00033973,2]
[387850540,1758929257808,-151.0,0.00033973,2]
[387850541,1758929257828,-151.0,0.00033973,2]
[387850542,1758929257850,-151.0,0.00033973,2]
[387850543,1758929257870,-500.0,0.00033973,2]
[387850544,1758929257891,-151.0,0.00033973,2]
[387850545,1758929257912,-151.0,0.00033973,2]
[387850546,1758929257932,-151.0,0.00033973,2]
[387850547,1758929257953,-281.70302615,0.00033973,2]
[387850548,1758929257973,-151.0,0.00033973,2]
[387850549,1758929257996,-151.0,0.00033973,2]
[387850550,1758929258017,-151.0,0.00033973,2]
[387850551,1758929258040,-151.0,0.00033973,2]
[387850552,1758929258063,-151.31144613,0.00033973,2]
[387850553,1758929258086,-500.0,0.00033973,2]
[387850554,1758929258109,-500.0,0.00033973,2]
[387850555,1758929258129,-230.64153186,0.00033973,2]
[387850556,1758929258153,-151.0,0.00033973,2]
[387850557,1758929258174,-151.0,0.00033973,2]
[387850558,1758929258194,-151.0,0.00033973,2]
[387850559,1758929258215,-151.0,0.00033973,2]
[387850560,1758929258235,-151.30050291,0.00033973,2]
[387850561,1758929258255,-158.26002673,0.00033973,2]
[387850562,1758929258276,-151.0,0.00033973,2]
[387850563,1758929258296,-500.0,0.00033973,2]
[387850564,1758929258317,-151.0,0.00033973,2]
[387850565,1758929258337,-151.0,0.00033973,2]
[387850566,1758929258360,-151.0,0.00033973,2]
[387850567,1758929258381,-151.0,0.00033973,2]
[387850568,1758929258402,-151.0,0.00033973,2]
[387850569,1758929258424,-500.0,0.00033973,2]
[387850570,1758929258447,-306.89651028,0.00034093,3]
[387850571,1758929258468,-1226.35845507,0.00034093,3]
[387850572,1758929258489,-151.0,0.00034247,2]
[387850573,1758929258510,-151.0,0.00034247,2]
[387850574,1758929258530,-151.0,0.00034247,2]
[387850575,1758929258552,-151.0,0.00034247,2]
[387850576,1758929258573,-500.0,0.00034247,2]
[387850577,1758929258595,-151.0,0.00034247,2]
[387850578,1758929258766,-151.0,0.00034247,2]
[387850579,1758929258788,-500.0,0.00034247,2]
[387850580,1758929258811,-500.0,0.00034247,2]
[387850581,1758929258833,-151.0,0.00034247,2]
[387850582,1758929258855,-151.0,0.00034247,2]
[387850583,1758929258876,-151.0,0.00034247,2]
[387850584,1758929258897,-219.23198078,0.00034247,2]
[387850585,1758929258918,-151.0,0.00034247,2]
[387850586,1758929258938,-500.0,0.00034247,2]
[387850587,1758929258959,-151.0,0.00034247,2]
[387850588,1758929258980,-151.0,0.00034247,2]
[387850589,1758929259004,-151.0,0.00034247,2]
[387850590,1758929259025,-151.0,0.00034247,2]
[387850591,1758929259047,-500.0,0.00034247,2]
[387850592,1758929259068,-1875.27997191,0.00034421,2]
[387850593,1758929259089,-21583.1502987,0.00034511,2]
[387850594,1758929259110,-151.0,0.00034521,2]
[387850595,1758929259131,-500.0,0.00034521,2]
[387850596,1758929259152,-151.0,0.00034521,2]
[387850597,1758929259173,-500.0,0.00034521,2]
[387850598,1758929259194,-500.0,0.00034521,2]
[387850599,1758929259215,-151.0,0.00034521,2]
[387850600,1758929259235,-301.67561036,0.00034521,2]
[387850601,1758929259256,-151.0,0.00034521,2]
[387850602,1758929259277,-151.0,0.00034521,2]
[387850603,1758929259297,-500.0,0.00034521,2]
[387850604,1758929259318,-151.0,0.00034521,2]
[387850605,1758929259341,-151.0,0.00034521,2]
[387850606,1758929259362,-500.0,0.00034521,2]
[387850607,1758929259384,-590.44,0.00034685,3]
[387850608,1758929259406,-198.0,0.00034795,2]
[387850609,1758929259427,-500.0,0.00034795,2]
[387850610,1758929259447,-151.0,0.00034795,2]
[387850611,1758929259468,-303.58499236,0.00034795,2]
[387850612,1758929259490,-500.0,0.00034795,2]
[387850613,1758929259510,-151.0,0.00034795,2]
[387850614,1758929259531,-302.0,0.00034795,2]
[387850615,1758929259552,-151.0,0.00034795,2]
[387850616,1758929259572,-151.0,0.00034795,2]
[387850617,1758929259594,-198.0,0.00034795,2]
[387850618,1758929259618,-168.0,0.00034881,2]
[387850619,1758929259639,-236.61951955,0.00035069,2]
[387850620,1758929259659,-222.4412413,0.00035069,2]
[387850621,1758929259681,-500.0,0.00035069,2]
[387850622,1758929259702,-216.99034262,0.00035069,2]
[387850623,1758929259723,-210.18163937,0.00035069,2]
[387850624,1758929259744,-198.91630416,0.00035069,2]
[387850625,1758929259765,-500.0,0.00035343,2]
[387850626,1758929259787,-590.44,0.00035355,3]
[387850627,1758929259809,-524.0,0.00035616,120]
[387850628,1758929259831,-500.0,0.00035617,2]
[387850629,1758929259851,-978.0,0.00035689,2]
[387850630,1758929259872,-635.0,0.00035689,2]
[387850631,1758929259892,-2160.0,0.00035689,2]
[387850632,1758929259914,-417.975,0.00035689,2]
[387850633,1758929259934,-4587.0,0.00035689,2]
[387850634,1758929259955,-269.44418583,0.00035891,2]
[387850635,1758929259976,-1180.87,0.00036592,3]
[387850636,1758929260001,-233.71402077,0.00036592,3]
[387850637,1758929260023,-1875.27997188,0.00036666,2]
[387850638,1758929260047,-1180.88,0.00036725,3]
[387850639,1758929260072,-2361.74,0.00037962,3]
[387850640,1758929260092,-786.058661,0.00038356,2]
[387850641,1758929260114,-635.0,0.00038689,2]
[387850642,1758929260134,-2160.0,0.00038689,2]
[387850643,1758929260156,-410.0,0.00038689,2]
[387850644,1758929260178,-1875.27997188,0.0003891,2]
[387850645,1758929260199,-720.153518,0.00038923,2]
[387850646,1758929260220,-1316.27698834,0.00039076,120]
[387850647,1758929260241,-151.0,0.000394,20]
[387850648,1758929260261,-160.0,0.0003944,120]
[387850649,1758929260282,-233.71402077,0.0003944,120]
[387850650,1758929260304,-151.0,0.000402,12]
[387850651,1758929260325,-500.0,0.00040211,7]
[387850652,1758929260346,-151.0,0.00041,12]
[387850653,1758929260368,-500.0,0.00041033,7]
[387850654,1758929260389,-7441.79093302,0.00041055,2]
[387850655,1758929260409,-1875.27997188,0.00041155,2]
[387850656,1758929260432,-1316.27698834,0.0004142,120]
[387850657,1758929260453,-417.15472785,0.0004142,120]
[387850658,1758929260474,-160.0,0.000415,120]
[387850659,1758929260494,-635.0,0.00041689,2]
[387850660,1758929260516,-2160.0,0.00041689,2]
[387850661,1758929260537,-410.0,0.00041689,2]
[387850662,1758929260558,-151.0,0.000419,14]
[387850663,1758929260580,-160.0,0.00042,120]
[387850664,1758929260601,-7441.790933,0.00042228,2]
[387850665,1758929260622,-166.95351001,0.00042358,26]
[387850666,1758929260643,-165.7184018,0.00042521,30]
[387850667,1758929260664,-21583.1502987,0.00042531,3]
[387850668,1758929260684,-500.0,0.00042551,10]
[387850669,1758929260705,-500.0,0.00042551,10]
[387850670,1758929260725,-500.0,0.000426,7]
[387850671,1758929260746,-500.0,0.00042677,60]
[387850672,1758929260767,-151.0,0.000427,10]
[387850673,1758929260787,-151.0,0.00043057,120]
[387850674,1758929260808,-1000.0,0.00043099,10]
[387850675,1758929260829,-1000.0,0.00043099,10]
[387850676,1758929260853,-1000.0,0.00043148,7]
[387850677,1758929260876,-21583.1502987,0.0004328,3]
[387850678,1758929260899,-24259.14070077,0.0004329,3]
[387850679,1758929268603,6470.17348508,0.00018,2]
[387850680,1758929272629,3529.83651492,0.00018,2]
[387850681,1758929272652,5547.45568657,0.00018,2]
[387850682,1758929295539,4452.55431343,0.00018,2]
[387850683,1758929295570,2072.66371563,0.00018,2]
[387850684,1758929299599,273.05038646,0.00021,2]
[387850688,1758929314119,5241.28975602,0.00015,2]
[387850689,1758929317760,2354.821079,0.0002,120]
[387850690,1758929318237,3256.097669,0.00032383,120]
[387850692,1758929320201,663.81953528,0.000245,2]
[387850693,1758929321151,735.673011,0.00025,5]
[387850712,1758929364101,-591.92,0.00025738,2]
[387850714,1758929379482,160.0,0.00025205,2]
[387850715,1758929408749,160.0,0.00022904,8]
[387850720,1758929432531,-4408.08,0.00025738,2]
[387850721,1758929432540,-10587.546708,0.00025897,2]
[387850722,1758929432549,-300.0,0.00025997,2]
[387850723,1758929432559,-951.03587385,0.00025997,2]
[387850895,1758929438511,-248.96412615,0.00025997,2]
[387850896,1758929438521,-298.31834707,0.00025997,2]
[387850897,1758929438530,-521.03303104,0.00025997,2]
[387850898,1758929438540,-521.03303104,0.00025997,2]
[387850899,1758929438549,-521.03303104,0.00025997,2]
[387850900,1758929438558,-521.03303104,0.00025997,2]
[387850901,1758929438567,-521.03303104,0.00025997,2]
[387850902,1758929438577,-521.03303104,0.00025997,2]
[387850903,1758929438586,-521.03303104,0.00025997,2]
[387850904,1758929438595,-521.03303104,0.00025997,2]
[387850905,1758929438606,-521.03303104,0.00025997,2]
[387850906,1758929438616,-185842.68666288,0.00025998,2]
[387850907,1758929438625,-172.71028632,0.00026141,2]
[387850908,1758929438635,-323.682734,0.00026241,2]
[387850909,1758929438645,-200.0,0.0002654,14]
[387850910,1758929438654,-420.0,0.00028135,2]
[387850911,1758929438664,-1680.0,0.0002826,2]
[387850912,1758929438673,-47936.37138099,0.00029,3]
[387850913,1758929438683,-301.999999,0.0002905,2]
[387850914,1758929438693,-572.8185214,0.00029194,2]
[387850915,1758929438703,-1031.07333852,0.00030082,2]
[387850916,1758929438712,-587.0,0.00030448,2]
[387850917,1758929438722,-1299.0,0.00030721,2]
[387850918,1758929438731,-1833.01926848,0.00030969,2]
[387850919,1758929438740,-172.67808031,0.00031196,2]
[387850920,1758929438749,-2864.092607,0.00031856,2]
[387850921,1758929438762,-1415.12879734,0.00032,120]
[387850922,1758929438772,-183.28330123,0.00032,120]
[387850923,1758929438781,-151.85223583,0.00032069,30]
[387850924,1758929438791,-1415.12879734,0.000323,120]
[387850925,1758929438800,-183.28330123,0.000323,120]
[387850926,1758929438809,-310.0,0.000323,2]
[387850927,1758929438819,-500.0,0.00032373,5]
[387850928,1758929438828,-500.0,0.00032373,5]
[387850929,1758929438837,-500.0,0.00032373,5]
[387850930,1758929438847,-504.19346823,0.00032373,5]
[387850931,1758929438856,-500.0,0.00032373,5]
[387850932,1758929438866,-507.75524515,0.00032373,5]
[387850933,1758929438875,-485.39747182,0.00032373,5]
[387850934,1758929438884,-504.03477072,0.00032373,3]
[387850935,1758929438894,-548.68274779,0.00032373,5]
[387850936,1758929438903,-160.77352352,0.00032382,10]
[387850937,1758929438912,-6013.11612884,0.00032382,2]
[387850938,1758929438921,-155.0,0.00032383,2]
[387850939,1758929438930,-155.0,0.00032383,2]
[387850940,1758929438939,-155.0,0.00032383,2]
[387850941,1758929438948,-155.0,0.00032383,2]
[387850942,1758929438958,-5809593.52580657,0.00032383,20]
[387850943,1758929439095,-170.64621587,0.00032383,20]
[387850944,1758929441662,-298944.79671204,0.00032383,20]
[387850945,1758929442155,-2139.58543488,0.00032383,20]
[387850946,1758929442166,-8044.45010541,0.00032383,20]
[387851002,1758929443590,-1676.00000001,0.00032383,20]
[387851004,1758929443602,-480.49998,0.00032383,20]
[387851265,1758929449681,422.67158563,0.00025205,2]
[387851344,1758929486168,5000.0,0.00025205,2]
[387851345,1758929501873,1128.94735919,0.00025205,2]
[387851346,1758929509911,3128.39105518,0.00025205,2]
[387851347,1758929509935,1871.60894482,0.00025205,2]
[387851348,1758929517910,4718.79377712,0.00025205,2]
[387851351,1758929533703,3409.60727806,0.00025205,2]
[387851352,1758929533728,328.61257497,0.00025205,2]
[387851353,1758929541989,790.29634626,0.00025205,2]
[387851354,1758929550109,3720.92768747,0.00025205,2]
[387851355,1758929557919,2708.8898601,0.00025205,2]
[387851356,1758929565989,2451.2835312,0.00025205,2]
[387851357,1758929566012,2548.7164688,0.00025205,2]
[387851358,1758929588321,3961.57404827,0.00025205,2]
[387851359,1758929596639,3489.71948293,0.00025205,2]
[387851360,1758929596664,491.72742749,0.00025205,2]
[387851361,1758929612346,2637.62137654,0.00025205,2]
[387851362,1758929620230,1054.07988817,0.00025205,2]
[387851384,1758929635531,1054.06988817,0.00025205,2]
[387851401,1758929656871,153.0,8.9e-07,2]
[387851405,1758929685710,-319.48382052,0.000253,2]
[387851407,1758929721468,219.08020896,0.00025096,15]
[387851408,1758929731177,246.05503918,0.00025205,2]
[387851410,1758929742779,219.13,0.000249,2]
[387851411,1758929765510,926.44639939,0.000252,2]
[387851412,1758929775390,299.99,0.00025205,2]
[387851413,1758929820135,300.0,0.000252,2]
[387851414,1758929832463,300.0,0.000252,2]
[387851415,1758929844308,300.0,0.000252,2]
[387851416,1758929855081,300.0,0.000252,2]
[387851417,1758929866487,300.0,0.000252,2]
[387851418,1758929871598,299.99,0.00025205,2]
[387851419,1758929877933,300.0,0.000252,2]
[387851420,1758929879692,316.28,0.00018182,15]
[387851421,1758929880136,300.0,0.00025205,2]
[387851422,1758929880240,316.28,0.00018182,15]
[387851423,1758929915414,304.80172132,0.000252,2]
[387851425,1758929998999,160.0,0.00025205,2]
[387851426,1758930035235,166.0,0.00022932,8]
[387851427,1758930054112,9674.01,0.00025205,2]
[387851428,1758930054135,325.99,0.00025205,2]
[387851429,1758930063478,5000.0,0.00025205,2]
[387851430,1758930069098,246.22732003,0.00025079,14]
[387851431,1758930076963,4427.79267997,0.00025205,2]
[387851432,1758930076986,1572.20732003,0.00025205,2]
[387851433,1758930079045,5000.0,0.00025205,2]
[387851434,1758930087512,265.35890562,0.00025205,2]
[387851435,1758930103099,3162.44377435,0.00025205,2]
[387851436,1758930103125,1837.55622565,0.00025205,2]
[387851437,1758930112072,4065.88403024,0.00025205,2]
[387851438,1758930117043,300.0,0.000252,2]
[387851439,1758930120299,2604.85155539,0.00025205,2]
[387851440,1758930127886,300.0,0.000252,2]
[387851441,1758930128168,891.71818872,0.00025205,2]
[387851442,1758930128193,4108.28181128,0.00025205,2]
[387851443,1758930136827,1614.13918828,0.00025205,2]
[387851444,1758930144790,645.53723375,0.00025205,2]
[387851445,1758930153653,3632.05176669,0.00025205,2]
[387851446,1758930153681,1367.94823331,0.00025205,2]
[387851447,1758930161621,704.12491267,0.00025205,2]
[387851449,1758930177547,5000.0,0.00025205,2]
[387851450,1758930177608,257.5032251,0.000252,2]
[387851451,1758930185591,2670.43362892,0.00025205,2]
[387851452,1758930185614,2329.56637108,0.00025205,2]
[387851453,1758930201903,4096.36968373,0.00025205,2]
[387851454,1758930209671,1129.69225503,0.00025205,2]
[387851455,1758930225037,2444.38169016,0.00025205,2]
[387851456,1758930225063,1501.54842167,0.00025205,2]
[387851457,1758930234032,3945.91011183,0.00025205,2]
[387851458,1758930239401,300.0,0.000252,2]
[387851459,1758930249346,4245.92011183,0.00025205,2]
[387851460,1758930250353,6.63135467,0.000252,2]
[387851461,1758930250376,293.36864533,0.000252,2]
[387851464,1758930272496,4387.58996873,0.00025205,2]
[387851465,1758930296183,4272.44851591,0.00025205,2]
[387851473,1758930319358,2144.73361644,0.00025205,2]
[387851479,1758930334785,300.0,0.00025205,2]
[387851480,1758930342702,2130.14048616,0.00025205,2]
[387851481,1758930346115,-150.2261944,0.000253,2]
[387851482,1758930346136,-177.59204326,0.00026772,2]
[387851483,1758930346155,-509.74174054,0.00026872,2]
[387851484,1758930346175,-217.43,0.00028219,14]
[387851485,1758930346195,-189.862969,0.00029131,60]
[387851486,1758930346216,-1000.0,0.00029165,30]
[387851487,1758930346235,-403.3611297,0.00029531,2]
[387851488,1758930346257,-150.24,0.00029643,15]
[387851489,1758930346461,-154.93,0.00029643,15]
[387851490,1758930346484,-150.24,0.00029743,15]
[387851491,1758930346505,-154.93,0.00029743,15]
[387851492,1758930346526,-150.24,0.00029843,15]
[387851493,1758930346548,-150.24,0.00029843,15]
[387851494,1758930346572,-154.93,0.00029843,15]
[387851495,1758930346593,-150.24,0.00029943,15]
[387851496,1758930346615,-154.93,0.00029943,15]
[387851497,1758930346636,-150.24,0.00030043,15]
[387851498,1758930346658,-154.93,0.00030043,15]
[387851499,1758930346679,-400.0,0.00030049,2]
[387851500,1758930346699,-500.0,0.0003005,5]
[387851501,1758930346718,-401.0,0.00030133,2]
[387851502,1758930346738,-480.0,0.00030136,120]
[387851503,1758930346760,-150.24,0.00030143,15]
[387851504,1758930346782,-154.93,0.00030143,15]
[387851505,1758930346802,-160.0,0.0003016,2]
[387851506,1758930346822,-150.26,0.00030243,15]
[387851507,1758930346843,-154.93,0.00030243,15]
[387851508,1758930346865,-154.93,0.00030343,15]
[387851509,1758930346884,-504.19346823,0.00030433,5]
[387851510,1758930346904,-500.0,0.00030433,5]
[387851511,1758930346923,-500.0,0.00030433,5]
[387851512,1758930346943,-500.0,0.00030433,5]
[387851513,1758930346963,-500.0,0.00030433,5]
[387851514,1758930346982,-504.03477072,0.00030433,3]
[387851515,1758930347004,-154.93,0.00030443,15]
[387851516,1758930347024,-316.017,0.00030543,26]
[387851517,1758930347046,-154.93,0.00030543,15]
[387851518,1758930347065,-500.0,0.0003055,5]
[387851519,1758930347084,-1000.0,0.00030598,5]
[387851520,1758930347104,-154.93,0.00030643,15]
[387851521,1758930347124,-260.0,0.00030708,2]
[387851522,1758930347145,-154.93,0.00030743,15]
[387851523,1758930347166,-188.72,0.00030843,15]
[387851524,1758930347186,-188.72,0.00030843,15]
[387851525,1758930347206,-188.72,0.00030843,15]
[387851526,1758930347226,-188.72,0.00030843,15]
[387851527,1758930347246,-188.72,0.00030843,15]
[387851528,1758930347266,-188.72,0.00030843,15]
[387851529,1758930347286,-188.72,0.00030843,15]
[387851530,1758930347305,-154.92,0.00030843,15]
[387851531,1758930347327,-154.93,0.00030843,15]
[387851532,1758930347349,-154.93,0.00030943,15]
[387851533,1758930347369,-317.29972179,0.00030981,5]
[387851534,1758930347389,-1000.0,0.00030981,5]
[387851535,1758930347408,-1000.0,0.00030981,5]
[387851536,1758930347431,-154.93,0.00031043,15]
[387851537,1758930347450,-500.0,0.00031067,5]
[387851538,1758930347470,-500.0,0.00031098,5]
[387851539,1758930347491,-155.06,0.00031143,15]
[387851540,1758930347511,-1500.0,0.00031146,5]
[387851541,1758930347531,-360.0,0.00031256,2]
[387851542,1758930347554,-500.0,0.00031528,2]
[387851543,1758930347579,-500.0,0.00031528,2]
[387851544,1758930347601,-500.0,0.00031528,2]
[387851545,1758930347624,-500.0,0.00031528,2]
[387851546,1758930347648,-500.0,0.00031528,2]
[387851547,1758930347671,-500.0,0.00031528,2]
[387851548,1758930347693,-500.0,0.00031528,2]
[387851549,1758930347715,-500.0,0.00031528,2]
[387851550,1758930347738,-500.0,0.00031528,2]
[387851551,1758930347758,-208.82284295,0.00031528,2]
[387851552,1758930347781,-500.0,0.00031528,2]
[387851553,1758930347803,-500.0,0.00031528,2]
[387851554,1758930347826,-500.0,0.00031528,2]
[387851555,1758930347848,-500.0,0.00031528,2]
[387851556,1758930347871,-500.0,0.00031528,2]
[387851557,1758930347893,-500.0,0.00031528,2]
[387851558,1758930347915,-500.0,0.00031528,2]
[387851559,1758930347936,-500.0,0.00031528,2]
[387851560,1758930347960,-500.0,0.00031528,2]
[387851561,1758930347982,-500.0,0.00031528,2]
[387851562,1758930348004,-192.06063005,0.00031528,2]
[387851563,1758930348026,-500.0,0.00031528,2]
[387851564,1758930348049,-500.0,0.00031528,2]
[387851565,1758930348073,-500.0,0.00031528,2]
[387851566,1758930348097,-500.0,0.00031528,2]
[387851567,1758930348120,-500.0,0.00031528,2]
[387851568,1758930348142,-484.44244104,0.00031528,2]
[387851569,1758930348165,-500.0,0.00031528,2]
[387851570,1758930348188,-500.0,0.00031528,2]
[387851571,1758930348210,-239.10970872,0.00031528,2]
[387851572,1758930348232,-500.0,0.00031528,2]
[387851573,1758930348250,-1500.0,0.00031529,5]
[387851574,1758930348270,-274.36657078,0.00031529,5]
[387851575,1758930348289,-507.75524515,0.00031615,5]
[387851576,1758930348309,-490.18785629,0.00031694,5]
[387851577,1758930348328,-460.0,0.00031804,2]
[387851578,1758930348348,-622.77775164,0.00031963,2]
[387851579,1758930348368,-160.28645206,0.00032,120]
[387851580,1758930348388,-319.99999999,0.00032,120]
[387851581,1758930348408,-217.99592756,0.00032,120]
[387851582,1758930348427,-214.60596597,0.00032,120]
[387851583,1758930348448,-2601.51310701,0.00032,120]
[387851584,1758930348467,-169.62692056,0.00032,120]
[387851585,1758930348486,-1143.79183528,0.00032,120]
[387851586,1758930348506,-183.28330123,0.00032,120]
[387851587,1758930348525,-10172.00543099,0.00032064,2]
[387851588,1758930348544,-25917.0492663,0.0003207,2]
[387851589,1758930348563,-355.727614,0.00032077,5]
[387851590,1758930348588,-10172.00543095,0.00032091,2]
[387851591,1758930348607,-4196.81678902,0.0003211,2]
[387851592,1758930348628,-10172.00543095,0.00032117,2]
[387851593,1758930348648,-25917.04926629,0.0003212,2]
[387851594,1758930348668,-10172.00543095,0.00032144,2]
[387851595,1758930348691,-4196.81678902,0.00032144,2]
[387851596,1758930348711,-16722.4288721,0.00032149,2]
[387851597,1758930348730,-709.46128851,0.00032149,2]
[387851598,1758930349575,176.0,0.00022932,8]
[387851599,1758930417132,-548.68274779,0.00031067,5]
[387851600,1758930417156,-485.39747182,0.00031067,5]
[387851601,1758930417179,-217.99592755,0.00032,120]
[387851602,1758930417200,-169.62692056,0.00032,120]
[387851603,1758930417222,-2341.36179631,0.00032,120]
[387851604,1758930417243,-160.28645206,0.00032,120]
[387851605,1758930417266,-400.0,0.00032148,2]
[387851606,1758930417287,-1914.82705813,0.00032149,2]
[387851607,1758930432073,-1029.41265175,0.00032,120]
[387851608,1758930432097,-183.28330123,0.00032,120]
[387851609,1758930432120,-15608.3431066,0.00032051,2]
[387851610,1758930432142,-214.89871134,0.00032148,2]
[387851611,1758930432163,-400.0,0.00032148,2]
[387851612,1758930432184,-5769.3452314,0.00032149,2]
[387851613,1758930432205,-4196.81678902,0.0003215,2]
[387851614,1758930432228,-500.0,0.00032153,2]
[387851615,1758930432251,-500.0,0.00032153,2]
[387851616,1758930432275,-500.0,0.00032153,2]
[387851617,1758930432298,-500.0,0.00032153,2]
[387851618,1758930432322,-500.0,0.00032153,2]
[387851619,1758930432345,-417.37679611,0.00032153,2]
[387851620,1758930432368,-500.0,0.00032153,2]
[387851621,1758930432390,-500.0,0.00032153,2]
[387851622,1758930432412,-500.0,0.00032153,2]
[387851623,1758930432435,-500.0,0.00032153,2]
[387851624,1758930432456,-500.0,0.00032153,2]
[387851625,1758930432479,-500.0,0.00032153,2]
[387851626,1758930432502,-500.0,0.00032153,2]
[387851627,1758930432524,-500.0,0.00032153,2]
[387851628,1758930432547,-500.0,0.00032153,2]
[387851629,1758930432570,-500.0,0.00032153,2]
[387851630,1758930432593,-500.0,0.00032153,2]
[387851631,1758930432619,-500.0,0.00032153,2]
[387851632,1758930432639,-16722.4288721,0.00032154,2]
[387851633,1758930432661,-77306.75628245,0.00032158,2]
[387851634,1758930436131,-166.13,0.00032149,10]
[387851635,1758930436162,-22237.133968,0.00032158,2]
[387851636,1758930439096,-17513.11185455,0.00032158,2]
[387851637,1758930439120,-33574.5343122,0.00032158,2]
[387851638,1758930439143,-500.0,0.00032158,10]
[387851639,1758930439167,-16722.4288721,0.0003216,2]
[387851640,1758930439189,-4196.81678902,0.00032163,2]
[387851641,1758930439210,-4680.4097461,0.00032164,2]
[387851642,1758930439235,-18254.36970403,0.00032164,2]
[387851643,1758930449078,-12393.89753717,0.00032164,2]
[387851644,1758930449102,-4037.9240119,0.00032164,2]
[387851645,1758930449124,-500.0,0.00032164,10]
[387851646,1758930449146,-176.66400536,0.00032168,2]
[387851647,1758930449167,-153961.84892718,0.00032168,2]
[387851649,1758930575466,660.62,0.00028767,120]
[387851652,1758930632807,-153.53892715,0.00030043,14]
[387851653,1758930632817,-309.510866,0.00031167,2]
[387851654,1758930632826,-400.0,0.00032156,2]
[387851655,1758930632835,-500.0,0.00032157,2]
[387851656,1758930632844,-500.0,0.00032157,2]
[387851657,1758930632854,-242.16375727,0.00032157,2]
[387851658,1758930632863,-500.0,0.00032157,2]
[387851659,1758930632873,-500.0,0.00032157,2]